lending/lending_fUSD_20240509
["ID","MTS","AMOUNT","RATE_DAILY","PERIOD"]
[326701770,1715263846312,-163.16,0.00026055,2]
[326701771,1715263846323,-702.28,0.00026055,2]
[326701772,1715263846332,-523.22,0.00026055,2]
[326701773,1715263846346,-403.9,0.00026055,2]
[326701774,1715263846356,-523.22,0.00026055,2]
[326701775,1715263846365,-420.08,0.00026055,2]
[326701776,1715263846375,-400.23264891,0.000261,2]
[326701777,1715263846385,-283.47139289,0.000261,2]
[326701778,1715263846395,-1119.163026,0.00026201,2]
[326701779,1715263846408,-4476.652101,0.00026201,2]
[326701780,1715263846418,-152.62670482,0.00026224,2]
[326701781,1715263846429,-157.10779006,0.00026402,2]
[326701782,1715263846438,-155.53103316,0.00026429,2]
[326701783,1715263846448,-1000.0,0.000265,2]
[326701784,1715263846457,-154.38327232,0.00026532,2]
[326701785,1715263846467,-155.21230022,0.00026602,2]
[326701786,1715263846477,-155.87234984,0.0002671,2]
[326701787,1715263846487,-208.71260672,0.00026845,2]
[326701788,1715263846496,-2013.0,0.00026849,10]
[326701789,1715263846506,-2206.39389146,0.00026894,2]
[326701790,1715263846515,-10015.45575745,0.000269,7]
[326701791,1715263846525,-175.74590104,0.000269,2]
[326701792,1715263846534,-1000.0,0.0002695,2]
[326701793,1715263846543,-1060.423594,0.0002695,7]
[326701794,1715263846553,-1060.423594,0.0002695,7]
[326701795,1715263846562,-158.590202,0.0002695,7]
[326701796,1715263846572,-1698.73417085,0.0002695,2]
[326701797,1715263846581,-155.0,0.00027,2]
[326701798,1715263846591,-12638.76496522,0.00027,2]
[326701799,1715263846601,-155.0,0.00027,2]
[326701800,1715263846611,-1000.0,0.00027,2]
[326701801,1715263846620,-151.0,0.00027,7]
[326701802,1715263846630,-173.320287,0.00027,7]
[326701803,1715263846639,-151.0,0.00027,7]
[326701804,1715263846648,-156.625846,0.00027,7]
[326701805,1715263846658,-157.759149,0.00027,7]
[326701806,1715263846667,-152.62670482,0.00027008,2]
[326701807,1715263846676,-208.71260672,0.0002705,2]
[326701808,1715263846686,-151.0,0.00027053,7]
[326701809,1715263846695,-151.0,0.00027053,7]
[326701810,1715263846704,-151.0,0.00027053,7]
[326701811,1715263846714,-300.0,0.00027053,120]
[326701812,1715263846723,-157.1622395,0.00027055,2]
[326701813,1715263846733,-155.77,0.00027068,15]
[326701814,1715263846743,-155.87234984,0.00027141,2]
[326701815,1715263846752,-1908.75184355,0.00027146,2]
[326701816,1715263846762,-215.636326,0.00027146,7]
[326701817,1715263846771,-151.0,0.00027146,7]
[326701818,1715263846781,-189.025394,0.00027146,7]
[326701819,1715263846790,-152.44113517,0.00027258,2]
[326701820,1715263846800,-151.0,0.00027266,7]
[326701821,1715263846809,-157.3574962,0.000273,2]
[326701822,1715263846819,-2295.68,0.00027397,5]
[326701823,1715263846828,-150.0,0.00027397,2]
[326701824,1715263846838,-4461.62863,0.00027397,7]
[326701825,1715263846847,-1283.90177793,0.00027471,2]
[326701826,1715263846857,-152.44113517,0.00027566,2]
[326701827,1715263846866,-300.0,0.00027584,120]
[326701828,1715263846875,-150.0,0.00027677,2]
[326701829,1715263846885,-150.0,0.00027682,2]
[326701830,1715263846894,-150.0,0.00027689,2]
[326701831,1715263846904,-179.08742201,0.000277,2]
[326701832,1715263846915,-928.19999563,0.000277,2]
[326701833,1715263846925,-151.0,0.000277,7]
[326701834,1715263846935,-196.894192,0.000277,7]
[326701835,1715263846945,-150.0,0.00027727,2]
[326701836,1715263846954,-153.72997477,0.00027731,2]
[326701837,1715263846964,-152.44113517,0.00027742,2]
[326701838,1715263846973,-150.0,0.0002775,2]
[326701839,1715263846984,-150.0,0.00027756,2]
[326701840,1715263846996,-152.62670482,0.00027792,2]
[326701841,1715263847005,-150.0,0.00027811,2]
[326701842,1715263847016,-150.0,0.00027814,2]
[326701843,1715263847025,-150.0,0.00027822,2]
[326701844,1715263847034,-150.0,0.00027877,2]
[326701845,1715263847045,-150.0,0.00027923,2]
[326701846,1715263847056,-157.1622395,0.00027937,2]
[326701847,1715263847066,-150.0,0.00027955,2]
[326701848,1715263847075,-150.0,0.00027996,2]
[326701849,1715263847086,-500.0,0.00028,2]
[326701850,1715263847095,-1300.0,0.00028,3]
[326701851,1715263847106,-3000.0,0.00028,2]
[326701852,1715263847116,-400.23264891,0.00028,2]
[326701853,1715263847132,-300.0,0.00028,2]
[326701854,1715263847142,-283.47139289,0.00028,2]
[326701855,1715263847152,-150.0,0.00028012,2]
[326701856,1715263847162,-150.0,0.00028013,2]
[326701857,1715263847172,-150.0,0.00028052,2]
[326701858,1715263847182,-158.2210767,0.00028071,2]
[326701859,1715263847192,-157.1622395,0.00028072,2]
[326701860,1715263847201,-150.0,0.00028097,2]
[326701861,1715263847211,-300.0,0.00028114,120]
[326701862,1715263847222,-150.0,0.00028118,2]
[326701863,1715263847232,-152.44113517,0.00028187,2]
[326701864,1715263847241,-150.0,0.00028194,2]
[326701865,1715263847251,-150.0,0.00028196,2]
[326701866,1715263847260,-150.0,0.00028262,2]
[326701867,1715263847270,-150.0,0.0002827,2]
[326701868,1715263847280,-167.96542799,0.00028296,2]
[326701869,1715263847289,-150.0,0.00028303,2]
[326701870,1715263847299,-9197.2538822,0.00028308,7]
[326701871,1715263847309,-229.01241159,0.00028324,2]
[326701872,1715263847321,-150.0,0.00028356,2]
[326701873,1715263847333,-175.74590102,0.000284,2]
[326701874,1715263847342,-1698.73417083,0.00028425,2]
[326701875,1715263847352,-150.0,0.00028433,2]
[326701876,1715263847365,-150.0,0.00028482,2]
[326701877,1715263847381,-150.0,0.00028486,2]
[326701878,1715263847391,-150.0,0.00028522,2]
[326701879,1715263847403,-150.0,0.00028537,2]
[326701880,1715263847413,-150.0,0.00028554,2]
[326701881,1715263847423,-150.0,0.00028568,2]
[326701882,1715263847433,-152.62670482,0.00028576,2]
[326701883,1715263847443,-150.0,0.00028584,2]
[326701884,1715263847452,-150.0,0.00028604,2]
[326701885,1715263847462,-150.0,0.00028628,2]
[326701886,1715263847471,-391.47744492,0.00028645,120]
[326701887,1715263847481,-150.0,0.00028647,2]
[326701888,1715263847491,-500.0,0.00028696,2]
[326701889,1715263847500,-500.0,0.00028705,2]
[326701890,1715263847515,-153.72997477,0.00028707,2]
[326701891,1715263847524,-150.0,0.00028727,2]
[326701892,1715263847534,-150.0,0.0002873,2]
[326701893,1715263847544,-150.0,0.00028734,2]
[326701894,1715263847553,-208.71260672,0.00028784,2]
[326701895,1715263847563,-20058.0,0.000288,4]
[326701896,1715263847572,-150.0,0.00028804,2]
[326701897,1715263847582,-150.0,0.00028839,2]
[326701898,1715263847591,-150.0,0.00028845,2]
[326701899,1715263847600,-500.0,0.00028851,2]
[326701900,1715263847610,-500.0,0.0002886,2]
[326701901,1715263847620,-164.74761097,0.00028896,2]
[326701902,1715263847630,-413.5232386,0.00028896,2]
[326701903,1715263847639,-902.690289,0.00028896,2]
[326701904,1715263847648,-347.89908226,0.00028896,2]
[326701905,1715263847657,-150.0,0.00028928,2]
[326701906,1715263847667,-150.0,0.00028983,2]
[326701907,1715263847677,-150.0,0.00028986,2]
[326701908,1715263847687,-254.426596,0.00028995,7]
[326701909,1715263847696,-151.0,0.00028995,7]
[326701910,1715263847705,-151.0,0.00028995,7]
[326701911,1715263847715,-151.0,0.00028995,7]
[326701912,1715263847724,-816751.79034822,0.00028996,3]
[326701913,1715263847734,-638048.70901591,0.00028996,3]
[326701914,1715263847755,-255.471,0.00028996,3]
[326701921,1715263847988,-432.0,0.00028996,3]
[326701922,1715263848000,-351.0372381,0.00028996,3]
[326701923,1715263848395,-508.044624,0.00012999,2]
[326701924,1715263848409,-178.79771114,0.00012999,2]
[326701925,1715263848420,-1464.01984525,0.00012999,2]
[326701926,1715263848430,-188.4240812,0.00018028,2]
[326701927,1715263848442,-25234.86915252,0.00028996,3]
[326701928,1715263850705,336.75213487,9.146e-05,2]
[326701942,1715264246565,279.13,0.00024961,120]
[326701968,1715265035020,-216.00457748,0.00012897,2]
[326701970,1715265035029,-1195.53907704,0.00012898,7]
[326701973,1715265035042,-331.66141689,0.00012898,7]
[326701974,1715265035052,-170.37573681,0.00012898,2]
[326701977,1715265035064,-30673.82946179,0.00012899,2]
[326701979,1715265035077,-1481.21731534,0.00012899,2]
[326701981,1715265035088,-696.77431602,0.00012899,2]
[326701983,1715265035101,-434.33736611,0.00012899,2]
[326701985,1715265035114,-519.01089523,0.00012899,2]
[326701987,1715265035134,-1400.0,0.00012899,2]
[326701988,1715265038269,-355.52000041,0.00012899,2]
[326701993,1715265038281,-689.30241408,0.00012899,2]
[326701996,1715265038296,-2245.43580064,0.00012899,2]
[326701999,1715265038308,-2371.92,0.00012899,2]
[326702002,1715265038320,-670.45812629,0.00012899,2]
[326702006,1715265038333,-308.15617,0.00012899,2]
[326702009,1715265038347,-298.64,0.00012899,2]
[326702013,1715265038363,-286.18192272,0.00012899,2]
[326702016,1715265038376,-1004.02797844,0.00012899,2]
[326702019,1715265038388,-387.51100691,0.00012899,2]
[326702041,1715265040768,-525.62249087,0.00012899,2]
[326702052,1715265041018,-2959.50488079,0.00012899,2]
[326702055,1715265041032,-31670.0,0.00012899,2]
[326702061,1715265041049,-1562.631937,0.00012899,2]
[326702065,1715265041066,-12074.99943737,0.00012899,2]
[326702134,1715265041513,-473.3383626,0.00012899,2]
[326702136,1715265041526,-977.69249947,0.00012899,2]
[326702139,1715265041540,-708.7166173,0.00012899,2]
[326702141,1715265041553,-2272.42143935,0.00012899,2]
[326702143,1715265041566,-301.52429435,0.00012899,2]
[326702145,1715265041579,-35339.59596692,0.00012899,2]
[326702147,1715265041589,-618.36792039,0.00015,2]
[326702149,1715265041600,-170.3757368,0.00016874,2]
[326702151,1715265041610,-588.0,0.000174,2]
[326702153,1715265041621,-1050.0,0.00018,3]
[326702155,1715265041633,-178.88,0.00019178,2]
[326702157,1715265041644,-157.81,0.00019178,2]
[326702159,1715265041654,-590.57771877,0.00019897,2]
[326702161,1715265041664,-267.65,0.00019897,2]
[326702163,1715265041676,-1000.0,0.0002,4]
[326702165,1715265041686,-170.3757368,0.00020849,2]
[326702167,1715265041697,-154.6019309,0.00021333,2]
[326702169,1715265041707,-154.6019309,0.00021566,2]
[326702171,1715265041718,-157.16223951,0.00021687,2]
[326702173,1715265041728,-500.0,0.00022555,2]
[326702175,1715265041742,-544.19,0.00022573,2]
[326702177,1715265041752,-500.0,0.00022615,2]
[326702178,1715265041762,-150.0,0.00022633,2]
[326702179,1715265041772,-2000.0,0.00022674,2]
[326702181,1715265041787,-250.0,0.00022684,2]
[326702183,1715265041797,-235.04,0.00022768,2]
[326702185,1715265041808,-154.6019309,0.00022797,2]
[326702187,1715265041821,-283.47139289,0.00023071,2]
[326702189,1715265041831,-200.11632446,0.00023071,2]
[326702191,1715265041842,-3214.95992167,0.00023071,2]
[326702193,1715265041855,-23900.0,0.0002317,2]
[326702195,1715265041866,-250.0,0.00023171,2]
[326702197,1715265041878,-154.3,0.00023213,2]
[326702199,1715265041890,-178.29,0.00023274,2]
[326702201,1715265041901,-154.3,0.00023348,2]
[326702203,1715265041912,-154.3,0.00023482,2]
[326702205,1715265041923,-154.3,0.00023617,2]
[326702206,1715265041933,-154.3,0.00023751,2]
[326702208,1715265041943,-3214.95992164,0.00023881,2]
[326702210,1715265041953,-154.3,0.00023885,2]
[326702212,1715265041965,-155.77546762,0.00024006,2]
[326702214,1715265041976,-154.3,0.0002402,2]
[326702216,1715265041986,-154.3,0.00024154,2]
[326702218,1715265041996,-154.3,0.00024289,2]
[326702220,1715265042006,-154.3,0.00024423,2]
[326702222,1715265042018,-1146.4424421,0.00024462,2]
[326702224,1715265042028,-152.44113519,0.00024591,2]
[326702226,1715265042038,-157.97353939,0.00024642,2]
[326702228,1715265042050,-2846.85,0.00024674,2]
[326702230,1715265042061,-200.0,0.00024689,2]
[326702232,1715265042070,-3214.95992164,0.00024691,2]
[326702234,1715265042081,-170.3757368,0.00024825,2]
[326702236,1715265042091,-222.22,0.00024827,2]
[326702238,1715265042102,-1273.63,0.00024827,2]
[326702240,1715265042112,-3796.65,0.00024865,2]
[326702242,1715265042123,-587.94,0.00024882,2]
[326702244,1715265042133,-250.0,0.00024884,2]
[326702246,1715265042143,-12555.7954,0.000249,2]
[326702248,1715265042153,-756.3374,0.000249,2]
[326702249,1715265042163,-293.7485134,0.00024961,2]
[326702250,1715265042173,-2215.61166505,0.00024961,2]
[326702251,1715265042183,-10000.0,0.00025,3]
[326702252,1715265042194,-17708.68633321,0.00025,2]
[326702253,1715265042207,-155.0,0.00025,2]
[326702254,1715265042216,-600.0,0.00025,2]
[326702255,1715265042227,-544.19,0.00025394,2]
[326702256,1715265042237,-3214.95992164,0.000255,2]
[326702257,1715265042247,-157.16223951,0.00025605,2]
[326702258,1715265042257,-154.6019309,0.00025651,2]
[326702259,1715265042267,-164.47,0.00025818,2]
[326702260,1715265042277,-153.76666664,0.00026093,2]
[326702261,1715265042287,-366.78721761,0.0002631,2]
[326702262,1715265042297,-3214.95992164,0.0002631,2]
[326702263,1715265042306,-303287.93810705,0.00026325,2]
[326702264,1715265042315,-276.4776444,0.0002641,2]
[326702265,1715265042325,-11421.51969223,0.0002662,2]
[326702266,1715265042335,-183.78119779,0.0002668,3]
[326702267,1715265042346,-157.97353939,0.00026882,2]
[326702268,1715265042360,-155.0,0.00027,2]
[326702269,1715265042372,-155.49233039,0.00027176,2]
[326702270,1715265042387,-150.0,0.00027397,2]
[326702271,1715265042397,-152.44113519,0.00027457,2]
[326702272,1715265042408,-222.22,0.00027567,2]
[326702273,1715265042418,-154.6019309,0.00027599,2]
[326702274,1715265042431,-158.2210767,0.00027695,2]
[326702276,1715265042442,-154.6019309,0.00027847,2]
[326702278,1715265042451,-150.0,0.00028118,2]
[326702280,1715265042461,-544.19,0.00028216,2]
[326702282,1715265042470,-1033.60413172,0.00028416,2]
[326702284,1715265042480,-150.0,0.00028521,2]
[326702285,1715265042490,-157.16223951,0.0002864,2]
[326702286,1715265042501,-157.97353939,0.0002875,2]
[326702287,1715265042511,-200.0,0.00028753,2]
[326702288,1715265042522,-1000.0,0.00028753,10]
[326702289,1715265042538,-500.0,0.00028753,2]
[326702290,1715265042548,-1000.0,0.00028754,10]
[326702291,1715265042558,-200.0,0.00028754,2]
[326702292,1715265042568,-1000.0,0.00028754,10]
[326702293,1715265042578,-1000.0,0.00028754,10]
[326702294,1715265042588,-282.650045,0.00028754,7]
[326702295,1715265042598,-500.0,0.00028754,2]
[326702296,1715265042608,-500.0,0.00028754,2]
[326702297,1715265042619,-200.0,0.00028754,2]
[326702298,1715265042868,-1161.94354803,0.00028766,2]
[326702299,1715265042883,-170.3757368,0.000288,2]
[326702300,1715265042894,-150.0,0.00028839,2]
[326702301,1715265042904,-500.0,0.00028841,2]
[326702302,1715265042915,-500.0,0.00028841,2]
[326702303,1715265042925,-500.0,0.00028841,2]
[326702304,1715265042935,-500.0,0.00028841,2]
[326702305,1715265042945,-509.7613,0.00028841,2]
[326702306,1715265042956,-272.21027319,0.00028874,2]
[326702307,1715265042966,-271.037,0.00028896,2]
[326702308,1715265042976,-100000.0,0.00028896,2]
[326702309,1715265042986,-341.0,0.000289,2]
[326702310,1715265042996,-2719.94047,0.00028986,2]
[326702311,1715265043006,-23234.35769661,0.00028996,3]
[326702312,1715265043016,-380.0569812,0.00028999,2]
[326702313,1715265043027,-461.52751619,0.00028999,2]
[326702314,1715265043037,-201.49224395,0.00028999,2]
[326702315,1715265043048,-305.96386504,0.00029,30]
[326702316,1715265043058,-1000.0,0.00029,2]
[326702317,1715265043068,-348.87,0.00029,2]
[326702318,1715265043078,-233.2,0.00029,2]
[326702319,1715265043087,-828.7,0.00029041,2]
[326702320,1715265043097,-868.27,0.00029041,2]
[326702321,1715265043107,-868.27,0.00029041,2]
[326702322,1715265043116,-868.27,0.00029041,2]
[326702323,1715265043127,-868.27,0.00029041,2]
[326702324,1715265043137,-176.16,0.00029041,2]
[326702325,1715265043146,-678.0,0.00029164,5]
[326702326,1715265043156,-351.25,0.00029178,2]
[326702327,1715265043165,-351.25,0.00029178,2]
[326702328,1715265043175,-351.25,0.00029178,2]
[326702329,1715265043184,-349.21,0.00029178,2]
[326702330,1715265043194,-154.6019309,0.00029224,2]
[326702331,1715265043203,-6405.1152,0.00029383,2]
[326702332,1715265043212,-272.21027319,0.00029387,2]
[326702333,1715265043222,-2597.4218,0.00029398,2]
[326702334,1715265043238,-50000.0,0.00029483,20]
[326702335,1715265043247,-50000.0,0.00029483,21]
[326702336,1715265043257,-50000.0,0.00029483,22]
[326702337,1715265043270,-50000.0,0.00029483,23]
[326702338,1715265043279,-14738.6442235,0.00029483,24]
[326702339,1715265043292,-478.3539069,0.00029483,24]
[326702340,1715265043303,-1292.04521374,0.00029483,24]
[326702341,1715265043315,-1985.592571,0.00029483,24]
[326702342,1715265043326,-1475.1160819,0.00029483,24]
[326702343,1715265043337,-1295.29761122,0.00029483,24]
[326702346,1715265043353,-8607.5,0.00029483,24]
[326702348,1715265043364,-20127.45039174,0.00029483,24]
[326702350,1715265043374,-1000.0,0.00029483,120]
[326702351,1715265043387,-2011.98692978,0.00029496,2]
[326702352,1715265043397,-156.37463375,0.00029496,2]
[326702353,1715265043407,-931.87688771,0.00029496,2]
[326702354,1715265043416,-3057.4434008,0.00029496,2]
[326702355,1715265043428,-1000.0,0.00029496,2]
[326702356,1715265043438,-1000.0,0.000295,2]
[326702357,1715265043447,-152.0,0.00029554,3]
[326702358,1715265043456,-150.0,0.0002956,2]
[326702359,1715265043466,-154.6019309,0.00029691,2]
[326702360,1715265043475,-348.87,0.000297,2]
[326702361,1715265043485,-152.62670482,0.000297,2]
[326702362,1715265043494,-178.63087483,0.000297,2]
[326702363,1715265043503,-150.0,0.00029714,2]
[326702364,1715265043512,-150.0,0.00029729,2]
[326702365,1715265043521,-150.0,0.0002973,2]
[326702366,1715265043530,-150.0,0.00029732,2]
[326702367,1715265043542,-150.0,0.00029733,2]
[326702368,1715265043552,-150.0,0.0002974,2]
[326702369,1715265043561,-150.0,0.00029742,2]
[326702370,1715265043571,-150.0,0.00029745,2]
[326702371,1715265043581,-150.0,0.0002976,2]
[326702372,1715265043590,-150.0,0.00029763,2]
[326702373,1715265043602,-150.0,0.00029765,2]
[326702374,1715265043612,-150.0,0.00029765,2]
[326702375,1715265043622,-150.0,0.0002978,2]
[326702376,1715265043632,-150.0,0.00029782,2]
[326702377,1715265043641,-150.0,0.00029783,2]
[326702378,1715265043651,-154.6019309,0.00029785,2]
[326702379,1715265043661,-150.0,0.00029795,2]
[326702380,1715265043670,-5178.4506846,0.00029798,2]
[326702381,1715265043679,-355.5316748,0.00029798,2]
[326702382,1715265043692,-790.910014,0.00029798,2]
[326702383,1715265043701,-6228.36696325,0.00029798,2]
[326702384,1715265043711,-572.77425807,0.00029798,7]
[326702385,1715265043720,-571.01966468,0.00029798,7]
[326702386,1715265043729,-2561.89837702,0.00029799,2]
[326702387,1715265043738,-153437.95479438,0.000298,3]
[326702388,1715265043747,-27483.65306546,0.000298,3]
[326702389,1715265043761,-10856.47109137,0.000298,3]
[326702390,1715265043771,-50174.84634838,0.000298,3]
[326702391,1715265043780,-1241.12094229,0.000298,2]
[326702392,1715265043789,-4000.0,0.000298,3]
[326702393,1715265043799,-150.0,0.00029802,2]
[326702394,1715265043810,-150.0,0.00029802,2]
[326702395,1715265043819,-150.0,0.00029804,2]
[326702396,1715265043828,-150.0,0.00029805,2]
[326702397,1715265043838,-150.0,0.00029808,2]
[326702398,1715265043847,-150.0,0.00029834,2]
[326702399,1715265043857,-150.0,0.00029836,2]
[326702400,1715265043867,-150.0,0.00029846,2]
[326702401,1715265043876,-150.0,0.00029848,2]
[326702402,1715265043886,-150.0,0.00029854,2]
[326702403,1715265043895,-150.0,0.00029865,2]
[326702404,1715265043905,-150.0,0.00029869,2]
[326702405,1715265043914,-749.63026421,0.0002988,30]
[326702406,1715265043924,-150.0,0.00029882,2]
[326702407,1715265043933,-150.0,0.00029896,2]
[326702408,1715265043942,-68287.97612833,0.000299,7]
[326702409,1715265043955,-4128.63986883,0.000299,7]
[326702410,1715265043966,-396.92181228,0.000299,7]
[326702411,1715265043977,-280.62050714,0.000299,7]
[326702412,1715265044342,-1710.32144644,0.00028758,2]
[326702413,1715265044357,-1464.01984524,0.00028985,2]
[326702414,1715265044370,-176905.84168342,0.000299,7]
[326702415,1715265044380,-1000.0,0.000299,2]
[326702416,1715265044391,-257.66438111,0.000299,2]
[326702417,1715265044402,-332.47617905,0.000299,2]
[326702418,1715265044415,-287.69499995,0.000299,2]
[326702419,1715265044429,-9122.16443989,0.000299,2]
[326702420,1715265044441,-150.0,0.000299,2]
[326702421,1715265044449,-164.74761096,0.000299,2]
[326702422,1715265044459,-272.21027319,0.000299,2]
[326702423,1715265044468,-262.89967965,0.000299,7]
[326702431,1715265044945,-764.825,0.000299,7]
[326702432,1715265044957,-288.4123511,0.000299,7]
[326702433,1715265044966,-1316.13703075,0.000299,7]
[326702434,1715265044975,-1316.13703075,0.000299,7]
[326702435,1715265044984,-1316.13703075,0.000299,7]
[326702436,1715265044993,-1316.13703075,0.000299,7]
[326702437,1715265045003,-1316.13703075,0.000299,7]
[326702438,1715265045012,-1316.13703075,0.000299,7]
[326702439,1715265045022,-1316.13703075,0.000299,7]
[326702440,1715265045031,-1316.13703075,0.000299,7]
[326702441,1715265045040,-119.57881066,0.000299,7]
[326702442,1715265045052,-1016.1,0.000299,7]
[326702443,1715265045063,-180.45822009,0.000299,7]
[326702444,1715265045072,-1316.13703075,0.000299,7]
[326702445,1715265045081,-346.59376916,0.000299,7]
[326702446,1715265045092,-453.24537606,0.000299,7]
[326702447,1715265045104,-516.29788553,0.000299,7]
[326702448,1715265045113,-1316.13703075,0.000299,7]
[326702449,1715265045122,-1316.13703075,0.000299,7]
[326702450,1715265045131,-1316.13703075,0.000299,7]
[326702451,1715265045141,-1316.13703075,0.000299,7]
[326702452,1715265045150,-1316.13703075,0.000299,7]
[326702453,1715265045159,-1316.13703075,0.000299,7]
[326702454,1715265045168,-1316.13703075,0.000299,7]
[326702455,1715265045177,-1316.63,0.000299,7]
[326702456,1715265045186,-170.13034698,0.000299,2]
[326702457,1715265045196,-406.80818983,0.000299,7]
[326702458,1715265045205,-406.80818983,0.000299,7]
[326702459,1715265045214,-406.80818983,0.000299,7]
[326702460,1715265045223,-406.80818983,0.000299,7]
[326702461,1715265045233,-406.80818983,0.000299,7]
[326702462,1715265045242,-406.80818983,0.000299,7]
[326702463,1715265045251,-406.80818983,0.000299,7]
[326702464,1715265045261,-406.80818983,0.000299,7]
[326702465,1715265045270,-406.80818983,0.000299,7]
[326702466,1715265045279,-406.80818983,0.000299,7]
[326702467,1715265045289,-406.80818983,0.000299,7]
[326702468,1715265045298,-406.80818983,0.000299,7]
[326702469,1715265045307,-406.80818983,0.000299,7]
[326702470,1715265045316,-190.96223053,0.000299,2]
[326702471,1715265045325,-406.80818983,0.000299,7]
[326702472,1715265045335,-406.80818983,0.000299,7]
[326702473,1715265045345,-406.80818983,0.000299,7]
[326702474,1715265045358,-406.80818983,0.000299,7]
[326702475,1715265045367,-406.80818983,0.000299,7]
[326702476,1715265045377,-406.80818983,0.000299,7]
[326702477,1715265045391,-407.3,0.000299,7]
[326702478,1715265045400,-10574.48065564,0.000299,2]
[326702479,1715265045410,-231.93272152,0.000299,2]
[326702480,1715265045423,-150.81966457,0.000299,7]
[326702481,1715265045433,-150.81966457,0.000299,7]
[326702482,1715265045442,-150.81966457,0.000299,7]
[326702483,1715265045451,-150.81966457,0.000299,7]
[326702484,1715265045460,-150.81966457,0.000299,7]
[326702485,1715265045469,-150.81966457,0.000299,7]
[326702486,1715265045479,-150.81966457,0.000299,7]
[326702487,1715265045488,-150.81966457,0.000299,7]
[326702488,1715265045497,-150.81966457,0.000299,7]
[326702489,1715265045506,-150.81966457,0.000299,7]
[326702490,1715265045517,-150.81966457,0.000299,7]
[326702491,1715265045526,-150.81966457,0.000299,7]
[326702492,1715265045536,-151.31,0.000299,7]
[326702493,1715265045545,-2232.03163812,0.000299,2]
[326702494,1715265045555,-1698.73417083,0.000299,2]
[326702495,1715265045564,-501.4424772,0.000299,7]
[326702496,1715265045573,-501.4424772,0.000299,7]
[326702497,1715265045582,-501.4424772,0.000299,7]
[326702498,1715265045591,-501.4424772,0.000299,7]
[326702499,1715265045600,-501.4424772,0.000299,7]
[326702500,1715265045609,-501.4424772,0.000299,7]
[326702501,1715265045618,-501.4424772,0.000299,7]
[326702502,1715265045628,-501.4424772,0.000299,7]
[326702503,1715265045639,-501.4424772,0.000299,7]
[326702504,1715265045649,-501.4424772,0.000299,7]
[326702505,1715265045658,-501.4424772,0.000299,7]
[326702506,1715265045666,-501.4424772,0.000299,7]
[326702507,1715265045675,-501.4424772,0.000299,7]
[326702508,1715265045684,-501.4424772,0.000299,7]
[326702509,1715265045693,-501.4424772,0.000299,7]
[326702510,1715265045702,-501.4424772,0.000299,7]
[326702511,1715265045712,-501.4424772,0.000299,7]
[326702512,1715265045721,-501.4424772,0.000299,7]
[326702513,1715265045731,-501.4424772,0.000299,7]
[326702514,1715265045739,-501.94,0.000299,7]
[326702515,1715265045748,-175.74590102,0.000299,2]
[326702516,1715265045758,-150.0,0.00029901,2]
[326702517,1715265045767,-231.9327215,0.00029903,2]
[326702518,1715265045776,-231.9327215,0.00029905,2]
[326702519,1715265045785,-150.0,0.00029916,2]
[326702520,1715265045795,-171.78490249,0.00029918,30]
[326702521,1715265045804,-150.0,0.00029919,2]
[326702522,1715265045813,-150.0,0.00029931,2]
[326702523,1715265045823,-150.0,0.00029932,2]
[326702524,1715265045832,-150.0,0.00029938,2]
[326702525,1715265045842,-150.0,0.0002994,2]
[326702526,1715265045851,-150.0,0.00029941,2]